bitfinex-derivatives/quotes_ETHF0:USTF0_20250602
["timestamp","ask_amount","ask_price","bid_price","bid_amount"]
[1748872886800,5.20514,2502.2,2501.5,2.3545]
[1748872887001,5.20514,2502.2,2501.6,1.3787]
[1748872887206,1.99736,2502.1,2501.6,1.3787]
[1748872887402,0.79905,2501.8,2501.6,2.17779]
[1748872887603,0.79901,2501.9,2501.7,2.17775]
[1748872887801,0.79901,2501.9,2501.8,1.3787]
[1748872888304,3.2078,2501.9,2501.8,1.3787]
[1748872888499,4.5029,2502.3,2501.8,1.3787]
[1748872888700,3.2078,2502.3,2501.8,1.3787]
[1748872889003,0.79913,2501.5,2501.4,4.6e-06]
[1748872889198,21.73013,2501.5,2501.4,4.6e-06]
[1748872890705,0.79913,2501.5,2501.4,4.6e-06]
[1748872891401,7.57583,2501.5,2501.4,4.6e-06]
[1748872891802,6.31913,2501.5,2501.4,4.6e-06]
[1748872892002,7.57583,2501.5,2501.4,4.6e-06]
[1748872892807,12.57583,2501.5,2501.4,4.6e-06]
[1748872893008,7.57583,2501.5,2501.4,4.6e-06]
[1748872893304,5.52,2501.9,2501.4,4.6e-06]
[1748872893502,21.7551,2501.6,2501.4,0.7991546]
[1748872893702,5.52,2501.9,2501.5,1.3274]
[1748872893909,21.74702,2501.9,2501.7,0.79905]
[1748872894111,20.957,2502.0,2501.8,1.3274]
[1748872894304,21.75598,2502.0,2501.9,35.8]
[1748872894503,20.957,2502.0,2501.8,1.3274]
[1748872894801,0.79912,2501.6,2501.4,2.3937046]
[1748872895002,0.79913,2501.5,2501.4,4.6e-06]
[1748872895603,5.79913,2501.5,2501.4,4.6e-06]
[1748872895806,4.4599,2501.7,2501.4,4.6e-06]
[1748872895999,3.2078,2501.7,2501.6,0.7991]
[1748872896304,0.79902,2501.9,2501.7,0.79905]
[1748872896504,20.978,2501.9,2501.8,0.79904]
[1748872897007,20.978,2501.9,2501.7,0.79905]
[1748872897201,8.7278,2502.6,2502.4,0.79883]
[1748872897405,8.7278,2502.6,2502.3,0.79885]
[1748872897699,21.76283,2502.5,2502.4,1.2571]
[1748872897903,20.964,2502.5,2502.1,0.79892]
[1748872898204,20.964,2502.5,2501.8,3.2078]
[1748872898205,20.971,2502.4,2501.9,3.25458]
[1748872898403,0.79888,2502.3,2502.2,0.7989]
[1748872898701,0.0059946,2502.7,2502.2,3.2078]
[1748872899006,0.0059946,2502.7,2502.6,0.79878]
[1748872899205,0.79878,2502.6,2502.4,0.79885]
[1748872899410,0.0059946,2502.7,2502.5,1.2796]
[1748872899716,0.0059946,2502.7,2502.6,0.79878]
[1748872900505,8.7278,2503.6,2503.5,0.7985]
[1748872900706,8.7278,2503.6,2502.6,7.20168]
[1748872900707,24.1648,2503.6,2503.1,0.79861]
[1748872900902,24.1648,2503.6,2503.2,37.0796]
[1748872901106,0.79852,2503.5,2503.3,1.2796]
[1748872901303,20.974,2503.4,2503.3,1.2796]
[1748872901506,21.77253,2503.4,2503.3,1.2796]
[1748872901708,3.2137946,2503.6,2503.3,1.2796]
[1748872901915,0.0059946,2503.6,2503.5,0.7985]
[1748872902212,3.2137946,2503.6,2503.3,2.4682]
[1748872902514,0.0059946,2503.6,2503.5,0.7985]
[1748872902808,0.79853,2503.4,2503.3,1.2796]
[1748872903013,4.4822946,2503.6,2503.2,36.59858]
[1748872903212,0.79856,2503.3,2503.2,35.8]
[1748872903412,4.00636,2503.3,2503.2,35.8]
[1748872903611,3.2078,2503.3,2503.1,0.0059946]
[1748872903813,20.963,2503.4,2503.1,0.0059946]
[1748872904011,20.963,2503.4,2503.3,0.79856]
[1748872904211,21.76153,2503.4,2503.2,37.0755]
[1748872904412,0.79859,2503.2,2503.1,0.0059946]
[1748872904914,3.2078,2503.3,2503.1,35.8059946]
[1748872905112,3.2078,2503.3,2503.2,1.2447]
[1748872905314,4.00636,2503.3,2503.2,1.2447]
[1748872905513,3.2078,2503.3,2503.2,2.04329]
[1748872905716,0.0059946,2503.6,2503.5,0.7985]
[1748872906815,0.0059946,2503.6,2503.5,5.7985]
[1748872906816,4.6e-06,2503.6,2503.5,5.7985]
[1748872907016,24.1548,2504.2,2504.1,0.7983]
[1748872907514,3.2078,2504.5,2504.1,5.0]
[1748872907716,3.2078,2504.5,2504.0,1.2076]
[1748872907913,0.79826,2504.3,2504.1,0.79829]
[1748872908114,0.79826,2504.3,2504.0,1.2076]
[1748872908423,20.933,2504.4,2504.3,0.79822]
[1748872908623,20.933,2504.4,2504.0,1.2076]
[1748872909215,0.0059946,2504.5,2504.4,0.79821]
[1748872909716,0.0059946,2504.5,2504.0,4.4154]
[1748872909921,0.0059946,2504.5,2504.4,4.00601]
[1748872910422,21.71894,2505.3,2504.6,1.99537]
[1748872910623,3.2078,2505.8,2504.9,3.2078]
[1748872910918,2.30735996,2506.4,2505.6,0.79783]
[1748872910919,0.07981801,2505.7,2505.6,0.79783]
[1748872911119,0.07981801,2505.7,2505.6,2.16583]
[1748872911513,0.07981801,2505.7,2505.6,7.16583]
[1748872911713,0.00399184,2505.9,2505.8,0.79776]
[1748872911911,0.08380348,2505.9,2505.8,0.79776]
[1748872912116,0.08380348,2505.9,2505.8,9.00556]
[1748872912316,0.08380348,2505.9,2505.8,44.80556]
[1748872913225,1.99337,2507.2,2505.9,1.99433]
[1748872913422,0.07979572,2506.4,2506.3,0.7976]
[1748872914021,1.3725,2507.2,2506.7,0.79746]
[1748872914022,0.79743,2506.9,2506.7,0.79746]
[1748872914227,0.79747,2506.8,2506.5,3.2137946]
[1748872914423,3.2078,2507.1,2506.5,3.2137946]
[1748872914622,3.2078,2507.1,2506.5,0.0059946]
[1748872914924,0.79746,2506.8,2506.5,0.8035146]
[1748872915223,0.79746,2506.8,2506.5,0.0059946]
[1748872915224,0.79751,2506.6,2506.5,0.0059946]
[1748872916322,11.30751,2506.6,2506.5,4.6e-06]
[1748872916514,10.51,2506.6,2505.2,4.4146]
[1748872916718,3.2078,2505.8,2505.2,4.4146]
[1748872916916,3.2078,2505.5,2505.2,0.79794]
[1748872917115,3.2078,2505.5,2504.9,3.2078]
[1748872917325,3.2078,2505.5,2504.8,0.79806]
[1748872917326,0.79801,2505.1,2504.8,0.79806]
[1748872917515,3.2078,2505.5,2504.9,0.0059946]
[1748872917516,1.2588,2505.4,2504.9,0.0059946]
[1748872917723,3.2137946,2505.5,2505.0,3.2078]
[1748872917919,5.2085246,2505.5,2504.9,35.8059946]
[1748872918120,0.79803,2505.0,2504.9,0.0059946]
[1748872918625,0.798,2505.1,2504.9,0.8040546]
[1748872918828,20.95,2505.0,2504.9,0.8040546]
[1748872919121,0.79795,2505.3,2504.9,3.2137946]
[1748872919326,21.73499,2505.2,2504.9,0.0059946]
[1748872919521,1.2588,2505.4,2504.9,0.0059946]
[1748872919724,3.2137946,2505.5,2505.0,3.2078]
[1748872919920,3.2137946,2505.5,2505.4,0.7979]
[1748872920121,0.0059946,2505.5,2505.3,0.79792]
[1748872920324,3.2137946,2505.5,2505.0,0.79801]
[1748872920528,3.2137946,2505.5,2504.9,2.4253946]
[1748872920725,0.0059946,2505.5,2505.4,4.0057]
[1748872921026,0.0059946,2505.5,2505.0,3.2078]
[1748872921232,0.0059946,2505.5,2505.4,0.7979]
[1748872921626,0.0059946,2505.5,2505.4,5.7979]
[1748872922430,0.0059946,2505.5,2504.9,2.4253946]
[1748872922431,24.1277946,2505.5,2504.9,2.4253946]
[1748872922730,3.2078,2505.2,2505.0,0.79802]
[1748872922925,0.79803,2505.0,2504.9,0.0059946]
[1748872923328,6.30703,2505.0,2504.9,0.0059946]
[1748872923524,12.49903,2505.0,2504.9,4.6e-06]
[1748872924030,13.84963,2505.0,2504.9,4.6e-06]
[1748872924628,8.84963,2505.0,2504.9,4.6e-06]
[1748872925039,13.84963,2505.0,2504.9,4.6e-06]
[1748872925227,3.34063,2505.0,2504.9,4.6e-06]
[1748872925528,0.0059946,2505.5,2504.9,4.6e-06]
[1748872925529,3.2137946,2505.5,2504.9,3.2078046]
[1748872925827,3.2137946,2505.5,2505.4,0.7979]
[1748872925828,4.6e-06,2505.5,2505.4,0.7979]
[1748872926224,4.6e-06,2505.5,2505.4,5.7979]
[1748872926428,4.6e-06,2505.5,2505.4,41.5979]
[1748872928732,4.3634,2507.4,2505.7,7.19678]
[1748872928926,4.3634,2507.4,2506.9,1.99357]
[1748872929230,3.2078,2507.4,2506.8,3.2078]
[1748872929430,4.5217,2507.4,2507.0,0.79738]
[1748872929633,3.2078,2507.1,2506.3,2.3495]
[1748872929835,3.2078,2507.1,2506.9,0.8034046]
[1748872930034,21.73139,2507.0,2506.9,0.0059946]
[1748872930333,20.934,2507.0,2506.9,0.8034146]
[1748872930635,3.2078,2507.4,2507.3,0.7973]
[1748872930834,0.00599,2507.5,2507.4,0.79727]
[1748872931134,3.2078,2508.3,2507.6,1.99301]
[1748872931433,3.2078,2508.3,2508.2,0.79701]
[1748872931932,3.2078,2508.3,2507.7,3.2078]
[1748872932132,3.2078,2508.3,2508.2,0.79701]
[1748872932335,21.75974,2509.1,2508.3,1.99246]
[1748872932629,21.75974,2509.1,2508.2,39.0078]
[1748872932630,1.3306,2509.2,2508.6,5.19995]
[1748872932834,3.2078,2509.3,2509.2,0.79669]
[1748872933033,3.2078,2509.3,2508.7,1.2495]
[1748872933235,0.79674,2509.1,2508.8,0.79682]
[1748872933429,2.12732,2509.2,2508.9,2.04629]
[1748872933630,0.79672,2509.2,2508.9,1.2495]
[1748872933827,1.3306,2509.5,2509.0,3.2078]
[1748872934137,24.1708,2509.6,2509.0,3.2078]
[1748872934430,3.2078,2509.6,2509.0,3.2078]
[1748872934636,1.99174,2509.2,2508.4,8.71878241]
[1748872934826,3.2078,2508.8,2508.4,3.21378241]
[1748872935028,0.79692,2508.5,2508.4,0.00598241]
[1748872935631,2.14472,2508.5,2508.4,0.00598241]
[1748872935827,24.1738,2508.7,2508.4,0.00598241]
[1748872936027,0.79686,2508.7,2508.5,4.0047]
[1748872936235,0.79688,2508.6,2508.5,3.2078]
[1748872936440,20.968,2508.6,2508.5,3.2078]
[1748872936740,1.3478,2509.0,2508.7,0.79682]
[1748872936941,3.2078,2509.1,2509.0,0.79676]
[1748872937139,3.2078,2509.5,2508.6,1.99217]
[1748872937334,3.2078,2509.5,2508.9,1.99198]
[1748872937535,3.2078,2509.5,2509.3,0.79664]
[1748872937837,3.2078,2509.8,2509.4,4.5258]
[1748872938042,3.2078,2509.8,2508.5,2.4966]
[1748872938043,1.99135,2509.7,2508.5,2.4966]
[1748872938230,3.2078,2509.5,2508.7,3.2078]
[1748872938434,1.2883,2509.4,2508.7,3.2078]
[1748872938736,3.2078,2509.2,2508.6,37.1112]
[1748872938929,3.2078,2509.2,2509.1,0.79673]
[1748872939132,4.00451,2509.2,2508.7,3.2078]
[1748872939333,1.2883,2509.4,2508.8,3.30322]
[1748872939539,1.2883,2509.4,2509.1,0.79671]
[1748872939735,4.4961,2509.4,2508.8,1.3112]
[1748872939934,0.79677,2509.0,2508.8,0.79681]
[1748872940135,20.94,2508.9,2508.8,0.79682]
[1748872940538,4.4961,2509.4,2509.0,0.79676]
[1748872940838,3.2078,2509.4,2508.8,3.2078]
[1748872941141,3.2078,2509.4,2509.3,0.79666]
[1748872941542,3.2078,2509.4,2508.9,1.3386]
[1748872941736,3.2078,2509.4,2509.3,0.79666]
[1748872942443,21.01169789,2509.5,2509.4,0.79663]
[1748872942444,0.07069789,2509.5,2509.4,0.79663]
[1748872942749,0.07069789,2509.5,2509.4,4.00443]
[1748872943237,0.07069789,2509.5,2509.4,0.79663]
[1748872943439,0.07069789,2509.5,2509.4,36.59663]
[1748872943841,0.07069789,2509.5,2509.4,41.59663]
[1748872944140,7.89e-06,2509.5,2509.4,44.80443]
[1748872944334,7.89e-06,2509.5,2509.4,39.80443]
[1748872944541,7.89e-06,2509.5,2509.4,44.80443]
[1748872944842,7.89e-06,2509.5,2509.4,50.30443]
[1748872945245,7.89e-06,2509.5,2509.4,41.59663]
[1748872945444,7.89e-06,2509.5,2509.4,36.59663]
[1748872945647,7.89e-06,2509.5,2509.4,44.80443]
[1748872946345,7.89e-06,2509.5,2509.4,39.80443]
[1748872946645,7.89e-06,2509.5,2509.4,44.80443]
[1748872946848,7.89e-06,2509.5,2509.4,50.36043]
[1748872947344,3.2078,2510.9,2510.8,0.79619]
[1748872947747,1.3131,2511.2,2511.1,0.79609]
[1748872947942,3.2078,2511.3,2511.2,0.79606]
[1748872948143,41.342,2512.5,2511.5,0.79596]
[1748872948144,24.1128,2511.6,2511.5,0.79596]
[1748872948347,3.2078,2511.6,2511.5,0.79596]
[1748872948548,3.2078,2511.9,2511.6,0.79592]
[1748872948745,0.79591,2511.7,2511.6,0.79592]
[1748872948946,0.79587,2511.8,2511.4,35.8]
[1748872949141,1.3131,2512.1,2511.6,5.19764]
[1748872949452,1.3131,2512.1,2511.9,0.79583]
[1748872949453,0.7958,2512.1,2511.9,0.79583]
[1748872949649,0.79587,2511.8,2511.7,1.3698]
[1748872950148,5.0,2511.8,2510.8,1.2002]
[1748872950447,0.79622,2510.7,2510.6,0.00598241]
[1748872950654,21.75422,2510.7,2510.6,2.41e-06]
[1748872950851,26.75422,2510.7,2510.6,2.41e-06]
[1748872951146,21.75422,2510.7,2510.6,2.41e-06]
[1748872951347,1.2736,2510.8,2510.6,2.41e-06]
[1748872951545,0.79622,2510.7,2510.6,2.41e-06]
[1748872951745,21.74922,2510.7,2510.6,2.41e-06]
[1748872951946,23.02282,2510.7,2510.6,2.41e-06]
[1748872952148,28.02282,2510.7,2510.6,2.41e-06]
[1748872952359,33.57582,2510.7,2510.6,2.41e-06]
[1748872952952,0.79663,2509.5,2509.3,1.3003]
[1748872953158,3.2078,2509.5,2509.3,1.3003]
[1748872953458,24.1638,2509.5,2508.5,3.2078]
[1748872953654,20.956,2509.4,2509.3,0.79666]
[1748872953957,20.956,2509.4,2509.1,0.00598241]
[1748872954260,3.2078,2509.5,2509.1,0.00598241]
[1748872954261,3.2078,2509.5,2509.4,0.79663]
[1748872954764,0.00594176,2509.6,2509.5,0.7966]
[1748872954959,0.00594176,2509.6,2509.5,2.0727]
[1748872955263,0.00594176,2509.6,2509.5,7.0727]
[1748872955459,0.00594176,2509.6,2509.5,2.0727]
[1748872955658,0.7966,2509.5,2509.2,3.2078]
[1748872955958,0.00594176,2509.6,2509.4,0.79661]
[1748872956162,0.00594176,2509.6,2509.5,0.7966]
[1748872956565,20.95194176,2509.6,2509.5,0.7966]
[1748872956865,20.95194176,2509.6,2509.1,0.00598241]
[1748872957059,4.5656,2509.5,2509.1,0.00598241]
[1748872957252,4.5656,2509.5,2509.4,0.79663]
[1748872957458,4.5656,2509.5,2509.1,0.00598241]
[1748872957653,4.00449,2509.2,2509.1,0.00598241]
[1748872958254,3.2078,2509.2,2509.1,0.80271241]
[1748872958454,24.94549,2509.2,2509.1,0.00598241]
[1748872958857,4.00449,2509.2,2509.1,0.00598241]
[1748872959058,24.1488,2509.2,2509.1,0.00598241]
[1748872959259,24.1478,2509.2,2509.1,0.80271241]
[1748872959459,24.1478,2509.2,2509.1,0.00598241]
[1748872959755,31.27759,2509.2,2509.1,0.00598241]
[1748872960460,4.5409,2509.2,2509.1,0.00598241]
[1748872960659,24.1328,2509.2,2509.1,0.00598241]
[1748872960867,25.4659,2509.2,2509.1,0.00598241]
[1748872961062,31.26259,2509.2,2509.1,0.00598241]
[1748872961267,32.45769,2509.2,2508.0,7.54665]
[1748872961563,3.2078,2508.6,2508.5,0.79692]
[1748872962161,0.5945,2509.1,2509.0,0.79676]
[1748872962362,0.00594176,2509.6,2509.1,0.79673]
[1748872962558,0.00594176,2509.6,2509.5,0.7966]
[1748872963662,0.80253176,2509.6,2509.5,0.7966]
[1748872963862,0.79666,2509.3,2509.2,35.8]
[1748872964063,3.2078,2509.3,2508.7,1.3415]
[1748872964265,0.79679,2508.9,2508.0,1.99266]
[1748872964468,20.925,2508.9,2508.8,0.80280241]
[1748872964668,22.99959,2508.9,2508.8,0.00598241]
[1748872965271,27.99959,2508.9,2508.8,0.00598241]
[1748872965469,22.1948,2508.9,2508.8,0.00598241]
[1748872965768,27.1948,2508.9,2508.8,0.00598241]
[1748872965963,3.2078,2509.0,2508.9,0.79679]
[1748872966165,3.2078,2509.3,2509.2,0.79669]
[1748872966364,3.2078,2509.7,2509.5,0.7966]
[1748872966573,20.94594176,2509.6,2509.5,0.7966]
[1748872966870,0.00594176,2509.6,2509.2,1.2808]
[1748872967070,1.38174176,2509.6,2509.5,0.7966]
[1748872967265,24.30019176,2509.6,2508.8,0.00598241]
[1748872967460,3.2078,2509.3,2509.2,0.79667]
[1748872967859,3.2078,2509.3,2509.1,0.79671]
[1748872967860,0.79671,2509.2,2509.1,0.79671]
[1748872968060,0.79674,2509.1,2508.9,37.0808]
[1748872968265,3.2078,2509.3,2509.2,0.79669]
[1748872968669,3.21374176,2509.6,2509.2,0.79669]
[1748872968868,4.5517,2510.8,2509.5,3.2078]
[1748872969070,4.5517,2510.8,2510.0,3.2078]
[1748872969270,4.5517,2510.8,2509.7,1.99127]
[1748872969271,0.79626,2510.6,2510.3,0.79633]
[1748872969472,1.3439,2510.5,2510.1,40.3783]
[1748872969668,22.3689,2510.5,2510.1,40.3783]
[1748872969969,22.3689,2510.5,2510.4,0.79631]
[1748872970173,0.00598241,2510.6,2510.5,0.79628]
[1748872970372,21.01998241,2510.6,2510.5,0.79628]
[1748872970571,0.00598241,2510.6,2510.5,2.16678]
[1748872970763,21.01298241,2510.6,2510.5,2.16678]
[1748872970969,0.00598241,2510.6,2510.5,5.37458]
[1748872971163,0.00598241,2510.6,2510.5,10.37458]
[1748872971367,2.41e-06,2510.6,2510.5,10.37458]
[1748872971966,2.41e-06,2510.6,2510.5,5.37458]
[1748872972273,2.41e-06,2510.6,2510.5,46.17458]
[1748872972673,2.41e-06,2510.6,2510.5,41.17458]
[1748872973369,3.2078,2512.3,2510.5,50.9323]
[1748872973673,4.4583,2512.7,2512.1,3.2078]
[1748872973869,25.5373,2512.7,2512.2,1.3307]
[1748872974167,3.2078,2513.4,2512.5,3.2078]
[1748872974372,3.2078,2513.4,2512.8,3.2078]
[1748872974567,1.3041,2513.3,2512.8,3.2078]
[1748872974762,0.79549,2513.0,2512.9,1.2764]
[1748872974965,0.79555,2512.8,2512.7,1.5e-07]
[1748872975167,6.46655,2512.8,2512.7,1.5e-07]
[1748872975368,11.46655,2512.8,2512.7,1.5e-07]
[1748872975571,12.77065,2512.8,2512.7,1.5e-07]
[1748872975868,7.09965,2512.8,2512.7,1.5e-07]
[1748872976469,0.79584,2512.0,2511.2,5.19796]
[1748872976773,1.3041,2511.9,2511.3,4.4842]
[1748872976967,25.6279,2511.9,2511.2,0.07964319]
[1748872977174,3.2078,2511.6,2511.2,0.07964319]
[1748872977473,1.3234,2511.5,2511.3,35.8]
[1748872977674,0.796,2511.4,2511.3,35.8]
[1748872977874,2.11938,2511.5,2511.3,35.8]
[1748872978281,2.11939,2511.5,2511.3,35.8]
[1748872978571,0.79603,2511.3,2511.2,0.07964319]
[1748872978774,0.79606,2511.2,2511.1,0.00597015]
[1748872979076,2.11946,2511.2,2511.1,0.00597015]
[1748872979274,7.11946,2511.2,2511.1,0.00597015]
[1748872979472,1.99042,2510.9,2509.8,0.79649]
[1748872979677,3.2078,2510.4,2510.1,0.79639]
[1748872979978,0.79634,2510.3,2510.2,0.07967492]
[1748872980571,0.00597015,2510.5,2510.2,0.07967492]
[1748872980770,0.79631,2510.4,2510.3,1.3412]
[1748872980977,0.00597015,2510.5,2510.3,0.79634]
[1748872981175,0.80227015,2510.5,2510.3,1.3412]
[1748872981375,0.80226015,2510.5,2510.2,0.87603492]
[1748872981677,0.00597015,2510.5,2510.2,0.07967492]
[1748872981874,0.00597015,2510.5,2510.4,0.79631]
[1748872982268,1.5e-07,2510.5,2510.4,5.79631]
[1748872982467,1.5e-07,2510.5,2510.4,9.55851]
[1748872982670,1.5e-07,2510.5,2510.4,3.7622]
[1748872982870,1.5e-07,2510.5,2510.4,40.35851]
[1748872983067,1.5e-07,2510.5,2510.4,45.35851]
[1748872983478,3.19494015,2510.5,2510.4,45.35851]
[1748872983678,3.2078,2511.8,2511.7,0.79589]
[1748872983971,6.8706,2512.2,2510.4,44.5622]
[1748872983972,24.3428,2512.2,2511.5,3.2078]
[1748872984172,21.147,2512.1,2511.5,3.2078]
[1748872984378,3.2078,2512.2,2512.1,0.79577]
[1748872985173,0.79581,2512.0,2511.9,0.00597015]
[1748872986571,0.79581,2512.0,2511.9,1.5e-07]
[1748872986572,11.46481,2512.0,2511.9,1.5e-07]
[1748872987371,15.46481,2512.0,2511.9,1.5e-07]
[1748872987775,36.67581,2512.0,2511.9,1.5e-07]
[1748872987975,4.0,2512.0,2511.9,1.5e-07]
[1748872988176,4.0,2512.0,2511.9,5.79583015]
[1748872988384,4.0,2512.0,2511.9,33.49583015]
[1748872988882,4.0,2512.0,2511.9,32.70000015]
[1748872989085,4.7958,2512.0,2511.9,32.70000015]
[1748872989283,4.0,2512.0,2511.9,32.70000015]
[1748872989482,4.0,2512.0,2511.9,38.49583015]
[1748872989682,4.0,2512.0,2511.9,33.49583015]
[1748872990785,4.0,2512.0,2511.9,34.80453015]
[1748872991587,25.254,2512.0,2511.9,34.80453015]
[1748872991787,26.0498,2512.0,2511.9,32.70000015]
[1748872991983,9.7958,2512.0,2511.9,1.5e-07]
[1748872992282,4.7958,2512.0,2511.9,1.5e-07]
[1748872992586,25.276,2512.0,2511.9,33.49583015]
[1748872992785,26.0718,2512.0,2511.9,32.70000015]
[1748872993082,4.0,2512.0,2511.9,33.49583015]
[1748872993384,4.0,2512.0,2511.9,32.70000015]
[1748872993586,4.7958,2512.0,2511.9,32.70000015]
[1748872994182,9.7958,2512.0,2511.9,32.70000015]
[1748872994389,9.7958,2512.0,2511.9,1.5e-07]
[1748872994680,31.7508,2512.0,2511.9,1.5e-07]
[1748872994880,4.7958,2512.0,2511.9,1.5e-07]
[1748872995075,4.0,2512.0,2511.9,0.79583015]
[1748872995281,25.292,2512.0,2511.9,0.79583015]
[1748872995475,25.297,2512.0,2511.9,1.5e-07]
[1748872995678,26.0928,2512.0,2511.9,1.5e-07]
[1748872995878,31.0928,2512.0,2511.9,1.5e-07]
[1748872996284,7.2008,2511.9,2510.0,5.19886]
[1748872996483,3.2078,2511.0,2510.4,1.2601]
[1748872996786,0.79628,2510.5,2510.4,1.2601]
[1748872996987,22.7179,2510.9,2510.4,1.2601]
[1748872997184,21.353,2510.8,2510.4,0.00597015]
[1748872997392,0.79628,2510.5,2510.4,32.70597015]
[1748872997881,2.17418,2510.5,2510.4,32.70597015]
[1748872998278,0.79628,2510.5,2510.4,32.70597015]
[1748872998477,3.2078,2510.6,2510.5,0.79628]
[1748872998677,0.00597015,2510.9,2510.5,1.2585]
[1748872998986,21.379,2510.8,2510.5,1.2585]
[1748872999187,0.79624,2510.6,2510.5,1.2585]
[1748872999387,0.00597015,2510.9,2510.5,1.2585]
[1748872999584,0.00597015,2510.9,2510.8,0.79618]
[1748873000086,0.00597015,2510.9,2510.8,5.79618]
[1748873000281,0.00597015,2510.9,2510.8,38.49618]
[1748873000482,0.00597015,2510.9,2510.8,33.9585]
[1748873000684,0.79628,2510.5,2510.4,0.00597015]
[1748873001180,22.20328,2510.5,2510.4,32.70597015]
[1748873001782,3.2078,2510.7,2510.4,32.70597015]
[1748873001988,21.416,2510.7,2510.5,1.3756]
[1748873002289,21.416,2510.7,2510.6,0.79624]
[1748873002485,0.79625,2510.6,2510.5,1.3756]
[1748873002984,0.79628,2510.5,2510.4,0.00597015]
[1748873003290,25.46608,2510.5,2510.4,0.00597015]
[1748873003482,31.81048,2510.5,2510.4,0.00597015]
[1748873004083,26.80948,2510.5,2510.4,32.70597015]
[1748873004585,3.2078,2510.5,2510.4,32.70597015]
[1748873004790,3.21377015,2510.9,2510.4,38.50228015]
[1748873004987,0.00597015,2510.9,2510.6,3.2078]
[1748873005290,0.00597015,2510.9,2510.8,0.79618]
[1748873005679,0.00597015,2510.9,2510.8,5.79618]
[1748873006285,4.00367,2511.8,2511.6,0.79591]
[1748873006493,4.0,2512.0,2511.9,0.79583]
[1748873006990,25.481,2512.0,2511.9,0.79583]
[1748873007185,4.7958,2512.0,2511.9,32.7]
[1748873007386,0.79586,2511.8,2511.7,1.5e-07]
[1748873007583,9.92266,2511.8,2511.7,1.5e-07]
[1748873007786,9.00366,2511.8,2511.7,1.5e-07]
[1748873007991,37.54066,2511.8,2511.7,1.5e-07]
[1748873009391,37.53066,2511.8,2511.7,1.5e-07]
[1748873009589,16.06066,2511.8,2511.7,1.5e-07]
[1748873009793,37.52566,2511.8,2511.7,1.5e-07]
[1748873010085,0.79631,2510.4,2510.2,1.2735]
[1748873010285,21.463,2510.3,2510.2,2.06987]
[1748873010586,21.463,2510.3,2510.2,1.2735]
[1748873010890,21.463,2510.3,2510.2,2.06987]
[1748873011185,0.00597015,2510.5,2510.4,0.79631]
[1748873011389,0.00597015,2510.5,2510.4,3.2078]
[1748873011692,0.79631,2510.4,2510.3,1.3337]
[1748873012185,9.1278,2510.4,2510.0,0.00597015]
[1748873012391,28.16635,2510.3,2510.1,0.79639]
[1748873012587,28.16635,2510.3,2510.1,2.13009]
[1748873012790,0.00597015,2510.5,2510.1,1.3337]
[1748873012992,0.00597015,2510.5,2510.0,0.00597015]
[1748873012993,0.79634,2510.3,2510.2,1.3337]
[1748873013289,0.79635,2510.3,2510.1,0.79639]
[1748873013585,0.00597015,2510.5,2510.4,0.79631]
[1748873013790,0.80227015,2510.5,2510.3,0.79633]
[1748873013989,0.00597015,2510.5,2510.3,1.2762]
[1748873014192,0.79631,2510.4,2510.3,1.2762]
[1748873014389,0.00597015,2510.5,2510.3,1.2762]
[1748873014786,0.00597015,2510.5,2510.4,0.79631]
[1748873014986,21.43297015,2510.5,2510.4,0.79631]
[1748873015292,21.43297015,2510.5,2510.0,1.99704015]
[1748873015293,29.64077015,2510.5,2510.0,0.00597015]
[1748873015589,0.79637,2510.3,2510.1,34.7726]
[1748873015789,25.98847015,2510.5,2510.1,33.9762]
[1748873015991,0.79637,2510.2,2510.1,32.7]
[1748873016186,3.21377015,2510.5,2510.1,32.7]
[1748873016395,0.00597015,2510.5,2510.4,0.79631]
[1748873016585,0.80226015,2510.5,2510.2,4.484]
[1748873016782,0.00597015,2510.5,2510.3,1.2762]
[1748873016989,0.80227015,2510.5,2510.4,33.49631]
[1748873017292,0.80227015,2510.5,2510.4,32.7]
[1748873017591,0.80227015,2510.5,2510.0,0.00597015]
[1748873017592,0.7964,2510.1,2510.0,0.00597015]
[1748873017795,9.9252,2510.1,2510.0,0.00597015]
[1748873018692,30.5458,2510.1,2510.0,0.00597015]
[1748873018898,6.52377015,2510.5,2510.2,0.79634]
[1748873019192,6.52377015,2510.5,2510.4,0.79631]
[1748873019193,0.60277015,2510.5,2510.4,0.79631]
[1748873019395,0.60277015,2510.5,2510.4,4.00411]
[1748873019590,3.2078,2511.5,2511.2,0.79604]
[1748873019790,22.24899,2511.4,2511.3,32.7]
[1748873019990,0.79609,2511.1,2511.0,1.2952]
[1748873020199,3.2078,2511.2,2510.3,4.3387]
[1748873020390,0.7964,2510.1,2509.7,3.2078]
[1748873020590,3.2078,2510.4,2509.7,3.2078]
[1748873020591,0.00592928,2510.3,2510.2,0.79637]
[1748873021093,0.00592928,2510.3,2510.2,5.79637]
[1748873021396,0.00592928,2510.3,2510.2,0.79637]
[1748873021993,0.79637,2510.2,2510.1,2.4261]
[1748873022192,0.00592928,2510.3,2510.0,0.00597015]
[1748873022594,0.80227928,2510.3,2510.0,0.00597015]
[1748873022795,0.00592928,2510.3,2510.0,0.00597015]
[1748873022999,0.7964,2510.1,2510.0,0.00597015]
[1748873023297,0.80227928,2510.3,2510.0,1.35997015]
[1748873023598,21.428,2510.2,2510.1,0.7964]
[1748873023798,0.00592928,2510.3,2510.2,0.79637]
[1748873023991,21.42092928,2510.3,2510.2,0.79637]
[1748873024192,21.42092928,2510.3,2510.0,2.15639015]
[1748873024495,0.79638,2510.2,2510.0,2.15639015]
[1748873024691,22.21728928,2510.3,2510.1,0.7964]
[1748873024999,21.39292928,2510.3,2510.2,0.79637]
[1748873025198,21.38992928,2510.3,2510.2,0.79637]
[1748873025594,21.38992928,2510.3,2510.2,33.49637]
[1748873025796,0.00592928,2510.3,2510.2,38.49637]
[1748873025990,0.00592928,2510.3,2510.2,41.70417]